Workbook

Sheet 1-4 кл.
J2: Утверждаю
I3: Директор СОШ с.
I4: ___________________/
A6: Возраст 7-11 лет Неделя I День 1 Дата:
A7: № блюда | B7: Прием пищи, Наименование блюда | C7: Масса порции | D7: Пищевые вещества, г | G7: Ккал | H7: Витамины, мг | K7: Минеральные вещества, мг
D8: Б | E8: Ж | F8: У | H8: В1 | I8: С | J8: А | K8: Ca | L8: Mg | M8: Fe | N8: P
A9: 1 | B9: 2 | C9: 3 | D9: 4 | E9: 5 | F9: 6 | G9: 7 | H9: 8 | I9: 9 | J9: 10 | K9: 12 | L9: 13 | M9: 14 | N9: 15
B10: Завтрак
A11: 1. | B11: Каша рисовая рассыпчатая с овощами | C11: 180 | D11: 7.20 | E11: 6.00 | F11: 38.40 | G11: 276.00 | H11: 0.09 | I11: 10.17 | K11: 107.90 | L11: 0.62 | M11: 1.88
A12: 2. | B12: Куриное филе ,тушеное с овощами | C12: 90 | D12: 20.43 | E12: 26.34 | F12: 3.36 | G12: 333.00 | H12: 0.06 | I12: 0.69 | K12: 288.00 | M12: 1.26
A13: 3. | B13: Напиток чайный "Витаминный" | C13: 200 | D13: 6.00 | E13: 0.20 | F13: 27.00 | G13: 111.00 | H13: 0.01 | I13: 80.00 | K13: 11.09 | L13: 2.96 | M13: 0.57
A14: 4. | B14: Хлеб пшеничный обогащенный витаминами (для детского питания) | C14: 50 | D14: 4.05 | E14: 0.70 | F14: 26.55 | G14: 129.00 | H14: 0.017 | I14: 0.015 | K14: 10.00 | L14: 7.00 | M14: 0.55
B15: Всего за завтрак | C15: =SUM(C11:C14) -> 520 | D15: 37.68 | E15: 33.24 | F15: 95.31 | G15: 849 | H15: 0.177 | I15: 90.875 | J15: 0 | K15: 416.99 | L15: 10.58 | M15: 4.26 | N15: 0
J17: Утверждаю
I18: Директор СОШ
I19: ___________________/
A21: Возраст 7-11 лет Неделя I День 2 Дата:
A22: № блюда | B22: Прием пищи, Наименование блюда | C22: Масса порции | D22: Пищевые вещества, г | G22: Ккал | H22: Витамины, мг | K22: Минеральные вещества, мг
D23: Б | E23: Ж | F23: У | H23: В1 | I23: С | J23: А | K23: Ca | L23: Mg | M23: Fe | N23: P
A24: 1 | B24: 2 | C24: 3 | D24: 4 | E24: 5 | F24: 6 | G24: 7 | H24: 8 | I24: 9 | J24: 10 | K24: 12 | L24: 13 | M24: 14 | N24: 15
B25: Завтрак
A26: 1. | B26: Макаронные изделия отварные | C26: 180 | D26: 6.39 | E26: 6.70 | F26: 39.33 | G26: 230.00 | H26: 0.70 | I26: 0.00 | J26: 31.95 | K26: 12.60 | L26: 9.00 | M26: 0.90 | N26: 47.70
A27: 2 | B27: Котлеты "Пермские" | C27: 100 | D27: 16.00 | E27: 15.50 | F27: 12.00 | G27: 253.00 | H27: 0.14 | I27: 0.00 | J27: 47.00 | K27: 50.00 | L27: 23.00 | M27: 2.75 | N27: 170.00
A28: 3 | B28: Соус томанный с овощами | C28: 30 | D28: 0.37 | E28: 2.20 | F28: 1.42 | G28: 26.91 | H28: 0.01 | I28: 0.51 | J28: 11.40 | K28: 3.12 | L28: 2.76 | M28: 0.13 | N28: 6.18
A29: 4 | B29: Кофейный напиток с молоком | C29: 200 | D29: 3.8 | E29: 3.5 | F29: 11.2 | G29: 91.2 | H29: 0.03 | I29: 0.52 | J29: 13.29 | K29: 111.00 | L29: 30.70 | M29: 1.10 | N29: 107.00
A30: 5 | B30: Хлеб пшеничный обогащенный витаминами (для детского питания) | C30: 50 | D30: 4.05 | E30: 0.70 | F30: 26.55 | G30: 129.00 | H30: 0.017 | I30: 0.015 | K30: 10.00 | L30: 7.00 | M30: 0.55
B31: Всего за завтрак | C31: =SUM(C26:C30) -> 560 | D31: 30.61 | E31: 28.6 | F31: 90.5 | G31: 730.11 | H31: 0.897 | I31: 1.045 | J31: 103.64 | K31: 186.72 | L31: 72.46 | M31: 5.43 | N31: 330.88
J33: Утверждаю
I34: Директор СОШ
I35: ___________________/
A37: Возраст 7-11 лет Неделя I День 3 Дата:
A38: № блюда | B38: Прием пищи, Наименование блюда | C38: Масса порции | D38: Пищевые вещества, г | G38: Ккал | H38: Витамины, мг | K38: Минеральные вещества, мг
D39: Б | E39: Ж | F39: У | H39: В1 | I39: С | J39: А | K39: Ca | L39: Mg | M39: Fe | N39: P
A40: 1 | B40: 2 | C40: 3 | D40: 4 | E40: 5 | F40: 6 | G40: 7 | H40: 8 | I40: 9 | J40: 10 | K40: 12 | L40: 13 | M40: 14 | N40: 15
B41: Завтрак
A42: 1. | B42: Каша пшенная молочная вязкая | C42: 180 | D42: 7.47 | E42: 10.53 | F42: 33.75 | G42: 259.20 | H42: 0.16 | I42: 0.48 | J42: 48.42 | K42: 113.40 | L42: 44.10 | M42: 1.17 | N42: 166.50
A43: 2 | B43: Запеканка из творога 9% со сгущенным молоком | C43: 90 | D43: 14.26 | E43: 8.44 | F43: 15.02 | G43: 181.28 | H43: 0.02 | I43: 0.22 | K43: 150.24 | L43: 21.54 | M43: 0.28
A44: 3 | B44: Чай фруктовый "Шиповник" | C44: 200 | D44: 6.00 | E44: 0.20 | F44: 27.00 | G44: 111.00 | H44: 0.01 | I44: 80.00 | K44: 11.09 | L44: 2.96 | M44: 0.57
A45: 4 | B45: Хлеб пшеничный обогащенный витаминами (для детского питания) | C45: 50 | D45: 4.05 | E45: 0.70 | F45: 26.55 | G45: 129.00 | H45: 0.017 | I45: 0.015 | K45: 10.00 | L45: 7.00 | M45: 0.55
B46: Всего за завтрак | C46: =SUM(C42:C45) -> 520.00 | D46: 31.78 | E46: 19.87 | F46: 102.32 | G46: 680.48 | H46: 0.21 | I46: 80.72 | J46: 48.42 | K46: 284.73 | L46: 75.60 | M46: 2.57 | N46: 166.50
J48: Утверждаю
I49: Директор СОШ с.
I50: ___________________/
A52: Возраст 7-11 лет Неделя I День 4 Дата:
A53: № блюда | B53: Прием пищи, Наименование блюда | C53: Масса порции | D53: Пищевые вещества, г | G53: Ккал | H53: Витамины, мг | K53: Минеральные вещества, мг
D54: Б | E54: Ж | F54: У | H54: В1 | I54: С | J54: А | K54: Ca | L54: Mg | M54: Fe | N54: P
A55: 1 | B55: 2 | C55: 3 | D55: 4 | E55: 5 | F55: 6 | G55: 7 | H55: 8 | I55: 9 | J55: 10 | K55: 12 | L55: 13 | M55: 14 | N55: 15
B56: Завтрак
A57: 1. | B57: Рис припущеный | C57: 180 | D57: 4.50 | E57: 5.20 | F57: 46.70 | G57: 251.43 | H57: 0.05 | I57: 0.00 | J57: 0.00 | K57: 13.18 | L57: 31.90 | M57: 0.69 | N57: 0.00
A58: 2. | B58: Фрикадельки из кур в томатном соусе | C58: 120 | D58: 9.27 | E58: 11.43 | F58: 5.46 | G58: 160.90 | H58: 0.05 | I58: 0.10 | L58: 29.16 | M58: 27.29 | N58: 1.09
A59: 3. | B59: Кисель витаминизированный "Шиповниковый" | C59: 200 | D59: 0.10 | E59: 0.10 | F59: 23.60 | G59: 93.00 | H59: 0.00 | I59: 7.50 | K59: 2.72 | L59: 0.00 | M59: 0.12
A60: 4 | B60: Хлеб пшеничный обогащенный витаминами (для детского питания) | C60: 50 | D60: 4.05 | E60: 0.70 | F60: 26.55 | G60: 129.00 | H60: 0.017 | I60: 0.015 | L60: 10.00 | M60: 7.00 | N60: 0.55
B61: Всего за завтрак | C61: =SUM(C57:C60) -> 550 | D61: 17.92 | E61: 17.43 | F61: 102.31 | G61: 634.33 | H61: 0.12 | I61: 7.62 | J61: 0.00 | K61: 15.90 | L61: 71.06 | M61: 35.10 | N61: 1.64
J63: Утверждаю
I64: Директор СОШ с.
I65: ___________________/
A67: ОВЗ / ММС / ГПД/ За счет родительской платы Возраст 7-11 лет Неделя I День 5 Дата:
A68: № блюда | B68: Прием пищи, Наименование блюда | C68: Масса порции | D68: Пищевые вещества, г | G68: Ккал | H68: Витамины, мг | K68: Минеральные вещества, мг
D69: Б | E69: Ж | F69: У | H69: В1 | I69: С | J69: А | K69: Ca | L69: Mg | M69: Fe | N69: P
A70: 1 | B70: 2 | C70: 3 | D70: 4 | E70: 5 | F70: 6 | G70: 7 | H70: 8 | I70: 9 | J70: 10 | K70: 12 | L70: 13 | M70: 14 | N70: 15
B71: Завтрак
A72: 1. | B72: Салат "Пестрый" | C72: 60 | D72: 0.6 | E72: 3.06 | F72: 6.24 | G72: 54 | H72: 0.01 | I72: 2.23 | J72: 0 | K72: 15.3 | L72: 8.91 | M72: 0.8 | N72: 0
A73: 2. | B73: Картофельное пюре с маслом | C73: 155 | D73: 3.10 | E73: 6.00 | F73: 19.70 | G73: 145.80 | H73: 0.12 | I73: 10.20 | K73: 39.00 | L73: 28.00 | M73: 1.00 | N73: 84.00
A74: 3. | B74: Котлета рыбная | C74: 90 | D74: 14.28 | E74: 9.56 | F74: 13.72 | G74: 199.12 | H74: 0.01 | I74: 0.33 | K74: 41.64 | L74: 26.68 | M74: 0.87
A75: 4. | B75: Чай с сахаром | C75: 200 | D75: 0.10 | E75: 0.00 | F75: 9.10 | G75: 35.00 | H75: 0.00 | I75: 0.04 | J75: 0.30 | K75: 0.26 | L75: 0.00 | M75: 0.03 | N75: 7.20
A76: 5. | B76: Хлеб пшеничный обогащенный витаминами (для детского питания) | C76: 50 | D76: 4.05 | E76: 0.70 | F76: 26.55 | G76: 129.00 | H76: 0.017 | I76: 0.015 | K76: 10.00 | L76: 7.00 | M76: 0.55
B77: Всего за завтрак | C77: =SUM(C72:C76) -> 555 | D77: 22.13 | E77: 19.32 | F77: 75.31 | G77: 562.92 | H77: 0.16 | I77: 12.82 | J77: =SUM(J73:J76) -> 0.30 | K77: =SUM(K72:K76) -> 106.20 | L77: =SUM(L72:L76) -> 70.59 | M77: =SUM(M72:M76) -> 3.25 | N77: =SUM(N72:N76) -> 91.20
J79: Утверждаю
I80: Директор СОШ с.
I81: ___________________/
A83: Возраст 7-11 лет Неделя II День 1 Дата:
A84: № блюда | B84: Прием пищи, Наименование блюда | C84: Масса порции | D84: Пищевые вещества, г | G84: Ккал | H84: Витамины, мг | L84: Минеральные вещества, мг
D85: Б | E85: Ж | F85: У | H85: В1 | I85: С | J85: А | K85: Е | L85: Ca | M85: Mg | N85: Fe | O85: P
A86: 1 | B86: 2 | C86: 3 | D86: 4 | E86: 5 | F86: 6 | G86: 7 | H86: 8 | I86: 9 | J86: 10 | K86: 11 | L86: 12 | M86: 13 | N86: 14 | O86: 15
B87: Завтрак
A88: 1. | B88: Каша "Дружба" | C88: 200 | D88: 5.00 | E88: 76.88 | F88: 23.80 | G88: 178.00 | H88: 0.05 | I88: 0.57 | J88: 33.20 | L88: 115.00 | M88: 27.00 | N88: 0.49 | O88: 122.90
A89: 2. | B89: Напиток чайный "Витаминный" | C89: 200 | D89: 3.80 | E89: 3.50 | F89: 11.20 | G89: 91.20 | H89: 0.03 | I89: 0.52 | J89: 13.29 | L89: 111.00 | M89: 30.70 | N89: 1.10
A90: 3. | B90: Хлеб пшеничный обогащенный витаминами (для детского питания) | C90: 50 | D90: 4.05 | E90: 0.70 | F90: 26.55 | G90: 129.00 | H90: 0.017 | I90: 0.015 | L90: 10.00 | M90: 7.00 | N90: 0.55
A91: 4. | B91: Сыр порционный | C91: 20 | D91: 4.60 | E91: 5.80 | F91: 0.00 | G91: 71.60 | H91: 0.01 | I91: 0.13 | J91: 52.00 | L91: 176.00 | M91: 6.60 | N91: 0.26 | O91: 100.00
A92: 5. | B92: Сок | C92: 200 | D92: 0.80 | E92: 0.00 | F92: 23.00 | G92: 94.00 | H92: 0.01 | I92: 2.00 | J92: 0.00 | L92: 42.00 | M92: 22.00 | N92: 2.20 | O92: 32.00
B93: Всего за завтрак | C93: =SUM(C88:C92) -> 670 | D93: 18.25 | E93: 86.88 | F93: 84.55 | G93: 563.8 | H93: 0.12 | I93: 3.24 | J93: 98.49 | K93: 0.00 | L93: 454.00 | M93: 93.30 | N93: 4.60 | O93: 254.90
J95: Утверждаю
I96: Директор СОШ с.
I97: ___________________/
A99: Возраст 7-11 лет Неделя II День 2 Дата:
A100: № блюда | B100: Прием пищи, Наименование блюда | C100: Масса порции | D100: Пищевые вещества, г | G100: Ккал | H100: Витамины, мг | L100: Минеральные вещества, мг
D101: Б | E101: Ж | F101: У | H101: В1 | I101: С | J101: А | K101: Е | L101: Ca | M101: Mg | N101: Fe | O101: P
A102: 1 | B102: 2 | C102: 3 | D102: 4 | E102: 5 | F102: 6 | G102: 7 | H102: 8 | I102: 9 | J102: 10 | K102: 11 | L102: 12 | M102: 13 | N102: 14 | O102: 15
B103: Завтрак
A104: 1. | B104: Макаронные изделия отварные | C104: 180 | D104: 5.40 | E104: 3.90 | F104: 32.80 | G104: 191.66 | H104: 0.06 | I104: 0.00 | J104: 22.10 | K104: 9.40 | L104: 9.40 | M104: 0.76 | N104: 41.20 | O104: 208.50
A105: 2. | B105: Тефтели из говядины с рисом Ёжики | C105: 90/30 | D105: 9.45 | E105: 7.31 | F105: 10.91 | G105: 147.40 | H105: 0.04 | I105: 0.00 | J105: 18.00 | K105: 41.62 | L105: 16.90 | M105: 0.93
A106: 3 | B106: Компот из смеси сухофруктов | C106: 200 | D106: 0.47 | E106: 0 | F106: 19.78 | G106: 81 | H106: 0.00 | I106: 0.00 | K106: 0.00 | L106: 0.00 | M106: 0.00 | N106: 0.00 | O106: 0.00
A107: 4. | B107: Хлеб пшеничный обогащенный витаминами (для детского питания) | C107: 50 | D107: 4.05 | E107: 0.70 | F107: 26.55 | G107: 129.00 | H107: 0.017 | I107: 0.015 | L107: 10.00 | M107: 7.00 | N107: 0.55
B108: Всего за завтрак | C108: 520 | D108: =SUM(D104:D107) -> 19.37 | E108: 11.91 | F108: 90.04 | G108: 549.06 | H108: 0.12 | I108: 0.02 | J108: 40.10 | K108: 51.02 | L108: 36.30 | M108: 8.69 | N108: 41.75 | O108: 208.50
J110: Утверждаю
I111: Директор СОШ с.
I112: ___________________/
A114: Возраст 7-11 лет Неделя II День 3 Дата:
A115: № блюда | B115: Прием пищи, Наименование блюда | C115: Масса порции | D115: Пищевые вещества, г | G115: Ккал | H115: Витамины, мг | L115: Минеральные вещества, мг
D116: Б | E116: Ж | F116: У | H116: В1 | I116: С | J116: А | K116: Е | L116: Ca | M116: Mg | N116: Fe | O116: P
A117: 1 | B117: 2 | C117: 3 | D117: 4 | E117: 5 | F117: 6 | G117: 7 | H117: 8 | I117: 9 | J117: 10 | K117: 11 | L117: 12 | M117: 13 | N117: 14 | O117: 15
B118: Завтрак
A119: 1. | B119: Салат "Витаминный" | C119: 60 | D119: 0.9 | E119: 2.76 | F119: 6.6 | G119: 54.6 | H119: 0.02 | I119: 8.22 | J119: 0 | K119: 0 | L119: 22.86 | M119: 11.72 | N119: 0.57 | O119: 0
A120: 2. | B120: Плов из курицы | C120: 200 | D120: 19.60 | E120: 28.30 | F120: 31.60 | G120: 466.00 | H120: 0.07 | I120: 0.66 | J120: 147.00 | K120: 22.30 | L120: 39.85 | M120: 1.90 | N120: 233.00
A121: 3. | B121: Чай с сахаром | C121: 200 | D121: 0.10 | E121: 0.00 | F121: 9.10 | G121: 35.00 | H121: 0.00 | I121: 0.04 | J121: 0.30 | L121: 0.26 | M121: 0.00 | N121: 0.03 | O121: 7.20
A122: 4. | B122: Хлеб пшеничный обогащенный витаминами (для детского питания) | C122: 50 | D122: 4.05 | E122: 0.70 | F122: 26.55 | G122: 129.00 | H122: 0.017 | I122: 0.015 | L122: 10.00 | M122: 7.00 | N122: 0.55
A123: 5. | B123: Печенье | C123: 30 | D123: 0.61 | E123: 3.90 | F123: 14.22 | G123: 94.54
B124: Всего за завтрак | C124: =SUM(C119:C123) -> 540 | D124: 25.26 | E124: 35.66 | F124: 88.07 | G124: 779.14 | H124: 0.11 | I124: 8.94 | J124: 147.30 | K124: 22.30 | L124: 72.97 | M124: 20.62 | N124: 234.15 | O124: 7.20
J126: Утверждаю
I127: Директор СОШ с.
I128: ___________________/
A130: Возраст 7-11 лет Неделя II День 4 Дата:
A131: 1 | B131: Прием пищи, Наименование блюда | C131: Масса порции | D131: Пищевые вещества, г | G131: Ккал | H131: Витамины, мг | L131: Минеральные вещества, мг
D132: Б | E132: Ж | F132: У | H132: В1 | I132: С | J132: А | K132: Е | L132: Ca | M132: Mg | N132: Fe | O132: P
A133: 1 | B133: 2 | C133: 3 | D133: 4 | E133: 5 | F133: 6 | G133: 7 | H133: 8 | I133: 9 | J133: 10 | K133: 11 | L133: 12 | M133: 13 | N133: 14 | O133: 15
B134: Завтрак
A135: 1. | B135: Каша гречневая рассыпчатая | C135: 150 | D135: 8.64 | E135: 5.64 | F135: 37.80 | G135: 240.60 | H135: 0.26 | I135: 0.00 | L135: 14.07 | M135: 132.95 | N135: 4.55
A136: 2. | B136: Гуляш из отварного мяса (говядина) | C136: 90 | D136: 11.37 | E136: 11.50 | F136: 2.59 | G136: 171.31 | H136: 0.03 | I136: 1.02 | J136: 23.04 | L136: 10.12 | M136: 16.00 | N136: 1.58 | O136: 119.70
A137: 3. | B137: Какао с молоком | C137: 200 | D137: 3.80 | E137: 3.50 | F137: 11.20 | G137: 91.20 | H137: 0.03 | I137: 0.52 | J137: 13.29 | K137: 111.00 | L137: 30.70 | M137: 1.10 | N137: 130.00
A138: 4. | B138: Хлеб пшеничный обогащенный витаминами (для детского питания) | C138: 50 | D138: 4.05 | E138: 0.70 | F138: 26.55 | G138: 129.00 | H138: 0.017 | I138: 0.015 | L138: 10.00 | M138: 7.00 | N138: 0.55
B139: Всего за завтрак | C139: =SUM(C135:C138) -> 490 | D139: 27.86 | E139: 21.34 | F139: 78.14 | G139: 632.11 | H139: 0.34 | I139: =SUM(I135:I138) -> 1.56 | J139: 36.33 | K139: 111.00 | L139: 64.89 | M139: 157.05 | N139: 136.68 | O139: 119.70
J141: Утверждаю
I142: Директор СОШ с.
I143: ___________________/
A145: Возраст 7-11 лет Неделя II День 5 Дата:
A146: № блюда | B146: Прием пищи, Наименование блюда | C146: Масса порции | D146: Пищевые вещества, г | G146: Ккал | H146: Витамины, мг | L146: Минеральные вещества, мг
D147: Б | E147: Ж | F147: У | H147: В1 | I147: С | J147: А | K147: Е | L147: Ca | M147: Mg | N147: Fe | O147: P
A148: 1 | B148: 2 | C148: 3 | D148: 4 | E148: 5 | F148: 6 | G148: 7 | H148: 8 | I148: 9 | J148: 10 | K148: 11 | L148: 12 | M148: 13 | N148: 14 | O148: 15
B149: Завтрак
A150: 1. | B150: Картофельное пюре с маслом | C150: 180 | D150: 4.13 | E150: 8.00 | F150: 26.40 | G150: 194.40 | H150: 0.16 | I150: 13.60 | J150: 42.80 | K150: 0.00 | L150: 52.00 | M150: 38.00 | N150: 1.40 | O150: 112.00
A151: 2. | B151: Котлеты Студенческие | C151: 90 | D151: 15.70 | E151: 20.30 | F151: 15.41 | G151: 306.00 | H151: 0.04 | I151: 0.16 | L151: 45.77 | M151: 27.29 | N151: 1.72 | O151: =SUM(D151:N151) -> 432.39
A152: 3. | B152: Чай фруктовый "Шиповник" | C152: 200 | D152: 6.00 | E152: 0.20 | F152: 27.00 | G152: 111.00 | H152: 0.01 | I152: 80.00 | L152: 11.09 | M152: 2.96 | N152: 0.57 | O152: =SUM(D152:N152) -> 238.83
A153: 4. | B153: Хлеб пшеничный обогащенный витаминами (для детского питания) | C153: 50 | D153: 4.05 | E153: 0.70 | F153: 26.55 | G153: 129.00 | H153: 0.017 | I153: 0.015 | L153: 10.00 | M153: 7.00 | N153: 0.55 | O153: =SUM(D153:N153) -> 177.88
B154: Всего за завтрак | C154: =SUM(C150:C153) -> 520.00 | D154: 29.88 | E154: 29.20 | F154: 95.36 | G154: 740.40 | H154: 0.23 | I154: 93.78 | J154: 42.80 | K154: 0.00 | L154: 118.86 | M154: 75.25 | N154: 4.24 | O154: 961.10
